Cogmind - Beta 13 X2 @@@ ROGUE MODE // 2024.01.22 @ 02:25:42 Player: Minty Result: Destroyed by S-27 Virus with Autogun Performance ------------- Evolutions (6) 3000 Regions Visited (11) 2200 Robots Destroyed (89) 445 Value Destroyed (4025) 4025 Prototype IDs (18) 360 Alien Tech Used (0) 0 Bonus (3471) 3471 TOTAL SCORE: 13501 Bonus ------- High Alert Combat Kills 334 Follower Combat Kills 650 Met Warlord at Base 500 MAIN.C Attacked Warlord 500 Warlord Defense Kills 1576 Friendly Fire -89 Cogmind --------- Core Integrity 0/1150 Matter 288/300 Energy 67/100 System Corruption 6% Temperature Cool (0) Movement Core (100) Ox1 Location -4/Upper Caves Parts ------- > --- POWER (2) -------- (None) > --- PROPULSION (4) --- (None) > --- UTILITY (8) ------ Advanced Trap Extractor (4/8 Fire) > --- WEAPON (5) ------- (None) > --- INVENTORY (5) ---- (None) Peak State ------------ > --- POWER ------------ Neutrino Core Particle-Engine Reactor > --- PROPULSION ------- Wheeled Compact-Armored Exoskeleton Centrium Wheel > --- UTILITY ---------- Armored Scrap Engine Advanced Heat Sink Advanced Terrain Scanner Hacking Suite Makeshift Hacking Suite Makeshift Hacking Suite Makeshift Hacking Suite > --- WEAPON ----------- Railgun RU-N14's Throwing Claymores v3 RU-N14's Throwing Claymores v3 Thermic Coil Construct/C Directed Neutralizer Construct/C > --- INVENTORY -------- Point Defense Array Advanced Trap Extractor Dirty Bomb Trap Large Botcube [Rating: 107] Favorites ----------- Power Light Ion Engine Engine Light Ion Engine Power Core Neutrino Core Reactor Constructs Propulsion Improved Aluminum Leg Leg Improved Aluminum Leg Wheel Constructs Utility Makeshift Hacking Suite Device Armored Scrap Engine Storage Small Storage Unit Processor Improved Target Analyzer Hackware Makeshift Hacking Suite Protection Hardened Light Armor Plating Weapon Heavy EM Pulse Gun Energy Gun Heavy EM Pulse Gun Energy Cannon Constructs Ballistic Gun Railgun Ballistic Cannon Heavy Gauss Cannon Launcher Heavy Rocket Launcher Special Weapon RU-N14's Throwing Claymores v3 Impact Weapon Hammer Build | -11 -10 -10 -7 -5 -5 -5 -5 -4 -4 -4 -4 ------- Run | Yrd Mat Sub Rec Fac Upp Upp War Pro Fac Upp Upp Slots Evolved 12 | . . . . 10 . . . . 2 . . Power 1 | . . . . 1 . . . . . . . Propulsion 2 | . . . . 1 . . . . 1 . . Utility 6 | . . . . 5 . . . . 1 . . Weapon 3 | . . . . 3 . . . . . . . Parts Attached 67 | . 6 12 2 2 2 10 6 . 12 12 3 Power 10 | . . 3 . . . . 1 . 2 3 1 Engine 3 | . . 3 . . . . . . . . . Core 7 | . . . . . . . 1 . 2 3 1 Reactor . | . . . . . . . . . . . . Propulsion 9 | . 2 1 1 . . 1 . . 2 2 . Treads . | . . . . . . . . . . . . Leg 6 | . 2 1 1 . . . . . . 2 . Wheel 3 | . . . . . . 1 . . 2 . . Hover . | . . . . . . . . . . . . Flight . | . . . . . . . . . . . . Utility 25 | . 1 4 1 1 . 7 2 . 5 3 1 Device 13 | . 1 2 1 1 . 4 . . 1 2 1 Storage 3 | . . 1 . . . 2 . . . . . Processor 1 | . . . . . . . . . . 1 . Hackware 5 | . . . . . . . 2 . 3 . . Protection 3 | . . 1 . . . 1 . . 1 . . Artifact . | . . . . . . . . . . . . Weapon 23 | . 3 4 . 1 2 2 3 . 3 4 1 Energy Gun 4 | . 3 1 . . . . . . . . . Energy Cannon 1 | . . 1 . . . . . . . . . Ballistic Gun 3 | . . . . . . 1 . . 1 1 . Ballistic Cannon 6 | . . 2 . . . . . . 1 2 1 Launcher 3 | . . . . . 2 . . . 1 . . Special Weapon 4 | . . . . 1 . . 3 . . . . Impact Weapon 2 | . . . . . . 1 . . . 1 . Slashing Weapon . | . . . . . . . . . . . . Piercing Weapon . | . . . . . . . . . . . . Special Melee Weapon . | . . . . . . . . . . . . Unidentified Prototypes 2 | . . . . . . . 1 . 1 . . Corrupted Parts 2 | . . . . 1 . 1 . . . . . System Corruption 7 | . . . . 5 . 2 . . . . . Parts Lost 43 | . . 1 . . . 9 1 . 18 5 9 Power 5 | . . . . . . . . . 3 . 2 Propulsion 10 | . . . . . . 3 . . 4 2 1 Utility 15 | . . 1 . . . 2 . . 6 2 4 Weapon 13 | . . . . . . 4 1 . 5 1 2 Highest Loss Streak 16 | . . 1 . . . 3 1 . 16 2 9 To Critical Strikes . | . . . . . . . . . . . . Average Slot Usage (%) 76 | . 91 92 71 48 60 56 77 79 75 28 20 Engine 9 | . 14 16 17 5 5 3 2 . . . . Core 1 | . . . . . . 1 4 5 4 1 1 Leg 15 | . 28 26 26 11 11 3 . . . 1 1 Wheel 2 | . . . . 3 5 6 5 5 8 . . Device 11 | . 5 11 13 8 11 14 17 17 13 1 3 Storage 6 | . 14 12 . . . 1 6 5 1 . . Hackware 4 | . . . . . . . 9 11 18 13 3 Energy Gun 11 | . 23 18 . 8 11 10 5 7 4 . . Energy Cannon 3 | . . 4 13 5 3 . . . 2 . . Ballistic Gun 1 | . 4 . . . . 2 5 5 4 . . Ballistic Cannon 1 | . . . . 1 5 2 . . 3 . . Special Weapon 2 | . . . . . . . 12 11 8 . . Naked Turns 1 | . . . . . . . . . . . 1 Heaviest Build 60 | 10 15 27 18 33 38 38 56 60 60 35 18 Greatest Support 58 | 20 26 26 26 26 26 36 39 39 58 35 20 Greatest Overweight (x) 3 | . . 1 1 1 1 1 1 1 1 3 1 Average Overweight (x) . | . . . . . 1 . . 1 . . . Largest Inventory Capacity 8 | 8 8 8 8 5 5 5 5 5 5 5 5 Average Capacity 6 | 8 8 7 5 5 5 5 5 5 5 5 5 Most Carried 8 | 6 8 8 8 5 5 5 5 5 5 5 3 Average Carried 5 | 6 7 7 4 4 4 3 4 5 4 3 1 Final Capacity 8 | 8 8 8 5 5 5 5 5 5 5 5 5 Final Carried 8 | 6 8 8 5 5 3 4 5 5 4 3 . Scrap Engine Consumption 70 | . . . 23 . 2 15 4 7 19 . . Constructs Created 8 | . . . 1 4 . . . 1 2 . . Constructs Modified 14 | . . . . . . 6 3 1 4 . . Class Distribution -------------------- 49% | Mutant 15% | Hacker-Skirmisher 7% | Gunner 6% | Commander-Gunner 5% | Hacker-Mutant Dominant Class ---------------- Mutant | -10/Materials Mutant | -10/Subcaves Mutant | -7/Recycling Commander-Gunner | -5/Factory Commander-Gunner | -5/Upper Caves Gunner | -5/Upper Caves Hacker-Skirmisher | -5/Warlord Hacker-Construct | -4/Proximity Caves Hacker-Skirmisher | -4/Factory Hacker-Mutant | -4/Upper Caves Hacker-Mutant | -4/Upper Caves Resources | -11 -10 -10 -7 -5 -5 -5 -5 -4 -4 -4 -4 ----------- Run | Yrd Mat Sub Rec Fac Upp Upp War Pro Fac Upp Upp Matter Collected 1416 | 206 64 174 12 . 89 274 117 26 214 240 . Remotely . | . . . . . . . . . . . . Salvage Created 3485 | 123 146 677 309 . 181 543 188 184 713 373 48 Parts 137 | 4 9 43 5 . 3 22 9 6 31 5 . Haulers Intercepted . | . . . . . . . . . . . . Recyclers Shooed 1 | . . . 1 . . . . . . . . Parts Field Recycled . | . . . . . . . . . . . . Retrieved Matter . | . . . . . . . . . . . . Parts Self-Destructed 47 | . . 11 . . 9 16 . 5 . 6 . Prevented 26 | . . 5 . . . 19 . . . 2 . Kills | -11 -10 -10 -7 -5 -5 -5 -5 -4 -4 -4 -4 ------- Run | Yrd Mat Sub Rec Fac Upp Upp War Pro Fac Upp Upp Combat Hostiles Destroyed 76 | . . 10 4 . 4 13 14 4 21 4 2 Melee 2 | . . . . . . . . . . 1 1 Guns 17 | . . 7 . . 1 6 1 . 2 . . Cannons 12 | . . 1 2 . 1 2 . . 4 2 . AOE 36 | . . 2 . . 2 4 13 3 12 . . Classes Destroyed 22 | 2 1 7 . . 1 5 4 . 2 . . Worker 2 | . . . . . . . . . 2 . . Builder 3 | . 2 . . . . . . . 1 . . Tunneler 3 | 1 1 . . . . . . . 1 . . Recycler 3 | 1 1 . 1 . . . . . . . . Minesweeper 1 | . . . . . . 1 . . . . . Operator 1 | . . . . . . . . . 1 . . Drone 1 | . . . . . . 1 . . . . . Turret 1 | . . 1 . . . . . . . . . Swarmer 17 | . . 2 . . 1 5 . . 6 1 2 Saboteur 2 | . . . . . . . 2 . . . . Grunt 22 | . . 3 1 . 1 4 4 3 6 . . Brawler 3 | . . . . . . 1 1 1 . . . Duelist 1 | . . . . . . . 1 . . . . Protector 1 | . . . . . . . 1 . . . . Sentry 11 | . . 1 3 . . 1 . . 5 1 . Specialist 1 | . . . . . . . 1 . . . . Hunter 3 | . . . . . . 1 1 . 1 . . Programmer 10 | . . . . . 2 . 3 . 3 2 . Artisan 2 | . . 2 . . . . . . . . . Cobbler 1 | . . 1 . . . . . . . . . Subdweller 4 | . . 4 . . . . . . . . . Packrat 2 | . . . . . . . . . . 2 . Samaritan 2 | . . . . . . 1 . . . 1 . Best Kill Streak 8 | 2 2 4 2 . 2 4 8 4 7 2 2 Combat Bots Only 8 | . . 4 1 . 2 4 8 4 5 2 2 Max Kills in Single Turn 6 | 1 1 1 1 . 1 2 6 3 4 1 1 Gunslinging 1 | . . . . . . 1 . . . . . Exploded 6 | . . 1 . . 1 2 6 3 4 . . Melee 1 | . . . . . . . . . . 1 1 Uniques/NPCs Destroyed . | . . . . . . . . . . . . Combat | -11 -10 -10 -7 -5 -5 -5 -5 -4 -4 -4 -4 -------- Run | Yrd Mat Sub Rec Fac Upp Upp War Pro Fac Upp Upp Hostile Shots Fired 618 | . . 24 65 . 13 107 27 12 261 44 65 Missed 220 | . . 9 34 . 4 36 7 4 98 14 14 Damage Taken 7488 | . . 349 248 . 171 1479 514 157 3225 601 744 Core 1511 | . . 70 36 . 21 152 63 17 444 336 372 Absorbed by Shields 8 | . . . . . 8 . . . . . . Regen/Repaired (Parts) 1029 | . . . 22 . . 217 309 153 328 . . Core Remaining (%) 77 | 100 . . 57 . . . . 74 . . . Volleys Fired 214 | 6 10 60 21 . 8 43 9 6 39 11 1 Largest 5 | 2 2 2 1 . 4 3 4 3 5 1 1 Hottest 260 | 60 90 93 120 . 197 157 89 143 260 61 61 Shots Fired 434 | 12 20 104 21 . 23 102 26 11 103 11 1 Gun 284 | 12 20 87 . . 9 89 18 7 42 . . Cannon 123 | . . 17 21 . 9 11 . 2 51 11 1 Launcher 7 | . . . . . 5 2 . . . . . Special 20 | . . . . . . . 8 2 10 . . Kinetic 127 | 6 4 9 . . 4 28 9 4 51 11 1 Thermal 124 | 6 6 8 21 . 10 31 . . 42 . . Explosive 27 | . . . . . 5 2 8 2 10 . . Electromagnetic 156 | . 10 87 . . 4 41 9 5 . . . Robot Hit Streak 17 | 4 7 15 4 . 3 10 4 7 17 2 . Robot Miss Streak 10 | 4 1 2 2 . 3 10 5 2 9 2 1 Penetration Max 2 | . . . . . . . . . 2 . . Secondary Targets 3 | . . 2 . . . 1 . . . . . Max Gunslinging Chain 1 | . . 1 . . . 1 . . . . . Shots Hit Robots 265 | 5 12 51 13 . 10 71 14 9 63 14 3 Core Hits 189 | 3 5 25 4 . 13 50 31 6 48 3 1 Critical Kills 6 | . . . 2 . . . . . 3 1 . Critical Parts Destroyed 1 | . . . . . . . . . . 1 . Critical Strikes 14 | . . . 2 . . . . 1 7 4 . Meltdown 5 | . . . 2 . . . . . 3 . . Blast 3 | . . . . . . . . . 1 2 . Smash 2 | . . . . . . . . . . 2 . Sever 4 | . . . . . . . . 1 3 . . Melee Attacks 16 | . . . . . . 2 . . . 9 5 Impact 16 | . . . . . . 2 . . . 9 5 Slashing . | . . . . . . . . . . . . Piercing . | . . . . . . . . . . . . Sneak Attacks 4 | . . . . . . 1 . . . 3 . Combat Hostiles . | . . . . . . . . . . . . Follow-up Attacks . | . . . . . . . . . . . . Damage Inflicted 12913 | 50 149 849 732 . 550 1920 2941 719 4121 765 117 Guns 3107 | 50 149 653 . . 58 1308 147 126 616 . . Cannons 2193 | . . 53 717 . 174 79 . 43 850 277 . Explosions 6437 | . . 143 . . 318 490 2625 508 2353 . . Melee 648 | . . . . . . 43 . . . 488 117 Ramming 26 | . . . 15 . . . . . 11 . . Kinetic 1750 | 8 15 . . . 10 367 96 69 908 277 . Thermal 2152 | 42 56 196 717 . 187 396 . . 558 . . Explosive 6209 | . . . . . 318 405 2625 508 2353 . . Electromagnetic 1626 | . 78 653 . . 35 709 51 100 . . . Impact 648 | . . . . . . 43 . . . 488 117 Slashing 502 | . . . . . . . 169 42 291 . . Piercing . | . . . . . . . . . . . . Highest Corruption 8 | . . . 1 5 6 8 8 2 1 6 6 Average Corruption 4 | . . . 1 5 5 6 4 2 1 5 6 Corruption Purged . | . . . . . . . . . . . . Corruption Blocked . | . . . . . . . . . . . . Effects 48 | . . . 1 3 15 17 2 3 1 6 . Message Errors 19 | . . . . 2 4 9 . 1 . 3 . Matter Fused 7 | . . . . . 3 2 . 1 . 1 . Heat Flow Errors 6 | . . . 1 . 3 1 1 . . . . Energy Discharges 6 | . . . . 1 1 1 1 1 1 . . Data Loss (minor) 5 | . . . . . 2 1 . . . 2 . Data Loss (major) 2 | . . . . . . 2 . . . . . Misfires 2 | . . . . . 2 . . . . . . Alerts 1 | . . . . . . 1 . . . . . Overload Shots 2 | . . . 2 . . . . . . . . Overflow Damage 593 | . . . 56 . 25 27 83 . 86 293 23 Projectiles 156 | . . . 56 . 25 5 . . 4 66 . Explosions 165 | . . . . . . . 83 . 82 . . Melee 272 | . . . . . . 22 . . . 227 23 Knockbacks 8 | . . . . . 1 . . 1 3 3 . Impact 1 | . . . . . . . . . . 1 . Kinetic 7 | . . . . . 1 . . 1 3 2 . Secondary . | . . . . . . . . . . . . Self-Inflicted Damage 148 | . . . . . 7 43 . . 98 . . Shots 4 | . . . . . 1 2 . . 1 . . Rammed 2 | . . . . . . . . . 2 . . Targets Rammed 5 | . . . 3 . . . . . 2 . . Kicked 3 | . . . 3 . . . . . . . . Crushed . | . . . . . . . . . . . . Highest Temperature 228 | 40 60 7 227 . 227 228 90 18 169 17 . Average Temperature 65 | 22 21 7 49 . 91 81 63 11 79 10 . Received Heat Transfer 965 | . . 60 81 . . 279 18 33 467 27 . Siege Activations . | . . . . . . . . . . . . Robots Corrupted 3 | . . 1 . . . 1 . 1 . . . Combat Hostiles 3 | . . 1 . . . 1 . 1 . . . Parts Fried 11 | . 1 1 . . . 5 . . 1 2 1 Impact Corruptions 8 | . . . . . . 2 . . . 5 1 Robots Melted 5 | . . . 2 . . . . . 3 . . Combat Hostiles 5 | . . . 2 . . . . . 3 . . Parts Melted 10 | . . . 2 . . . . . 7 1 . Heat Transferred 1963 | 100 125 100 . . 37 861 . . 740 . . Parts Sabotaged . | . . . . . . . . . . . . Parts Stolen . | . . . . . . . . . . . . Parts Stripped . | . . . . . . . . . . . . Power Chain Reactions 4 | . . 2 . . . 2 . . . . . Missiles Intercepted . | . . . . . . . . . . . . Alert | -11 -10 -10 -7 -5 -5 -5 -5 -4 -4 -4 -4 ------- Run | Yrd Mat Sub Rec Fac Upp Upp War Pro Fac Upp Upp Peak Influence 926 | 10 21 . 153 331 . . . . 926 . . Initial 312 | . 6 . . 312 . . . . 67 . . Average 144 | 4 11 . 26 323 . . . . 294 . . Maximum Alert Level 3 | . . . . 1 . . . . 3 . . Low Security (%) 72 | 100 100 . 100 . . . . . 43 . . Level 1 16 | . . . . 100 . . . . 31 . . Level 2 7 | . . . . . . . . . 17 . . Level 3 3 | . . . . . . . . . 7 . . Level 4 . | . . . . . . . . . . . . Level 5 . | . . . . . . . . . . . . High Security . | . . . . . . . . . . . . Max Security . | . . . . . . . . . . . . Squads Dispatched 6 | . . . . 1 . 1 . . 4 . . Investigation 2 | . . . . 1 . . . . 1 . . Extermination 1 | . . . . . . . . . 1 . . Reinforcement 1 | . . . . . . . . . 1 . . Assault 1 | . . . . . . 1 . . . . . Garrison 1 | . . . . . . . . . 1 . . Intercept . | . . . . . . . . . . . . Searches Triggered . | . . . . . . . . . . . . Construction Impeded . | . . . . . . . . . . . . Haulers Reinforced . | . . . . . . . . . . . . Active Scanning Responses . | . . . . . . . . . . . . Cargo Convoy Interrupts . | . . . . . . . . . . . . Stealth | -11 -10 -10 -7 -5 -5 -5 -5 -4 -4 -4 -4 --------- Run | Yrd Mat Sub Rec Fac Upp Upp War Pro Fac Upp Upp Distress Signals . | . . . . . . . . . . . . Communications Jammed . | . . . . . . . . . . . . Distress Signals . | . . . . . . . . . . . . Times Spotted 135 | . . 28 3 . 4 25 17 4 42 7 5 Peak Tracking Total 12 | . . 7 2 . 3 8 10 4 12 3 5 Tactical Retreats 8 | . . 2 . . 1 3 . . 2 . . Traps | -11 -10 -10 -7 -5 -5 -5 -5 -4 -4 -4 -4 ------- Run | Yrd Mat Sub Rec Fac Upp Upp War Pro Fac Upp Upp Traps Triggered 2 | . . 1 . . . . . . 1 . . Indirectly . | . . . . . . . . . . . . Trap Hack Attempts . | . . . . . . . . . . . . Triggered . | . . . . . . . . . . . . Disarmed . | . . . . . . . . . . . . Reprogrammed . | . . . . . . . . . . . . Reused 3 | . . . . . . 1 . . 1 1 . Traps Extracted 1 | . . . . . . 1 . . . . . Installed 4 | . . . . . . 2 . . 1 1 . Triggered 14 | . . . . . . 1 11 . 1 1 . Most Traps Carried 7 | . . . . . . 7 6 6 6 5 4 Machines | -11 -10 -10 -7 -5 -5 -5 -5 -4 -4 -4 -4 ---------- Run | Yrd Mat Sub Rec Fac Upp Upp War Pro Fac Upp Upp Machines Disabled 12 | . . 2 . . . . . . 10 . . Max in Single Turn 4 | . . 1 . . . . . . 4 . . Garrison Access 1 | . . . . . . . . . 1 . . Machines Repaired . | . . . . . . . . . . . . Machines Dismantled . | . . . . . . . . . . . . Machines Sabotaged . | . . . . . . . . . . . . Overloaded Fab Kills . | . . . . . . . . . . . . Hacking | -11 -10 -10 -7 -5 -5 -5 -5 -4 -4 -4 -4 --------- Run | Yrd Mat Sub Rec Fac Upp Upp War Pro Fac Upp Upp Machines Accessed 16 | . . 2 6 2 . . 1 . 5 . . Terminals 6 | . . . 3 2 . . . . 1 . . Fabricators . | . . . . . . . . . . . . Repair Stations 1 | . . . . . . . . . 1 . . Recycling Units 3 | . . . 3 . . . . . . . . Scanalyzers 1 | . . . . . . . . . 1 . . Garrison Access 2 | . . . . . . . . . 2 . . Total Hacks 52 | . . 11 18 5 . . 1 . 17 . . Successful 37 | . . 11 8 2 . . 1 . 15 . . Failed 15 | . . . 10 3 . . . . 2 . . Catastrophic 3 | . . . 3 . . . . . . . . Database Lockouts . | . . . . . . . . . . . . Manual 11 | . . . 4 3 . . . . 4 . . Terminals 22 | . . . 8 5 . . . . 9 . . Fabricators . | . . . . . . . . . . . . Repair Stations 4 | . . . . . . . . . 4 . . Recycling Units 10 | . . . 10 . . . . . . . . Scanalyzers 2 | . . . . . . . . . 2 . . Garrison Access 2 | . . . . . . . . . 2 . . Terminal Hacks 20 | . . 11 1 1 . . 1 . 6 . . Record 10 | . . 10 . . . . . . . . . Open Door 1 | . . . . . . . 1 . . . . Open DSF 1 | . . . . 1 . . . . . . . Branch Access Points 1 | . . . . . . . . . 1 . . Alert Level 2 | . . . 1 . . . . . 1 . . Maintenance Status 1 | . . . . . . . . . 1 . . Patrol Status 1 | . . . . . . . . . 1 . . Registered Components 1 | . . . . . . . . . 1 . . Registered Prototypes 1 | . . . . . . . . . 1 . . Derelict Proto ID Bank 1 | . . 1 . . . . . . . . . Fabricator Hacks . | . . . . . . . . . . . . Repair Station Hacks 4 | . . . . . . . . . 4 . . Scan Component 2 | . . . . . . . . . 2 . . Repair 2 | . . . . . . . . . 2 . . Recycling Unit Hacks 4 | . . . 4 . . . . . . . . Report Inventory 2 | . . . 2 . . . . . . . . Retrieve Matter 1 | . . . 1 . . . . . . . . Retrieve Components 1 | . . . 1 . . . . . . . . Scanalyzer 2 | . . . . . . . . . 2 . . Insert Component 1 | . . . . . . . . . 1 . . Analyze 1 | . . . . . . . . . 1 . . Garrison Access Hacks 1 | . . . . . . . . . 1 . . Seal Access 1 | . . . . . . . . . 1 . . Unauthorized Hacks 6 | . . . 3 1 . . . . 2 . . Terminals 2 | . . . . 1 . . . . 1 . . Botnet 2 | . . . . 1 . . . . 1 . . Fabricators . | . . . . . . . . . . . . Repair Stations . | . . . . . . . . . . . . Recycling Units 3 | . . . 3 . . . . . . . . Tunnel 3 | . . . 3 . . . . . . . . Scanalyzers . | . . . . . . . . . . . . Garrison Access 1 | . . . . . . . . . 1 . . Reprogram 1 | . . . . . . . . . 1 . . Data Cores Recovered . | . . . . . . . . . . . . Used . | . . . . . . . . . . . . Hacking Detections 10 | . . . 4 2 . . . . 4 . . Full Trace Events 4 | . . . 3 1 . . . . . . . Feedback Events 1 | . . . 1 . . . . . . . . Corruption 1 | . . . 1 . . . . . . . . Feedback Blocked . | . . . . . . . . . . . . Robot Schematics Acquired . | . . . . . . . . . . . . Robots Built . | . . . . . . . . . . . . Authchips . | . . . . . . . . . . . . Time . | . . . . . . . . . . . . Total Robot Build Rating . | . . . . . . . . . . . . Part Schematics Acquired 1 | . . . . . . . . . 1 . . Parts Built . | . . . . . . . . . . . . Authchips . | . . . . . . . . . . . . Time . | . . . . . . . . . . . . Total Part Build Rating . | . . . . . . . . . . . . Parts Repaired 2 | . . . . . . . . . 2 . . Time 59 | . . . . . . . . . 59 . . Parts Recycled . | . . . . . . . . . . . . Recycled Matter . | . . . . . . . . . . . . Retrieved Matter . | . . . . . . . . . . . . Retrieved Components . | . . . . . . . . . . . . Parts Scanalyzed 1 | . . . . . . . . . 1 . . Part Schematics Acquired 1 | . . . . . . . . . 1 . . Parts Damaged . | . . . . . . . . . . . . Bothacking | -11 -10 -10 -7 -5 -5 -5 -5 -4 -4 -4 -4 ------------ Run | Yrd Mat Sub Rec Fac Upp Upp War Pro Fac Upp Upp Used RIF Installer . | . . . . . . . . . . . . Robots Hacked . | . . . . . . . . . . . . Non-combat . | . . . . . . . . . . . . Combat . | . . . . . . . . . . . . Robot Hacks Applied . | . . . . . . . . . . . . Relay Couplers Released . | . . . . . . . . . . . . Fabnet Peak Effective % . | . . . . . . . . . . . . Robots Rewired 9 | . . . 4 . . . 5 . . . . Allies Hacked . | . . . . . . . . . . . . Hacks Repelled . | . . . . . . . . . . . . Allies | -11 -10 -10 -7 -5 -5 -5 -5 -4 -4 -4 -4 -------- Run | Yrd Mat Sub Rec Fac Upp Upp War Pro Fac Upp Upp Total Allies 11 | . . . 4 . . . 5 . 2 . . Largest Group 5 | . . . 4 4 4 . 5 2 4 . . Highest-Rated Group 275 | . . . 105 105 105 . 275 98 210 . . Highest-Rated Ally 68 | . . . 40 40 40 . 68 49 56 . . Total Orders . | . . . . . . . . . . . . Ally Attacks 77 | . . . . . 6 . 23 . 48 . . Total Damage 2727 | . . . . . 137 . 1098 . 1492 . . Kills 18 | . . . . . 2 . 6 . 10 . . Allies Corrupted . | . . . . . . . . . . . . Allies Melted 1 | . . . . . . . . . 1 . . Intel | -11 -10 -10 -7 -5 -5 -5 -5 -4 -4 -4 -4 ------- Run | Yrd Mat Sub Rec Fac Upp Upp War Pro Fac Upp Upp Robot Analysis Total . | . . . . . . . . . . . . Derelict Logs Recovered 4 | . . 1 . . . 1 . 1 . 1 . Drone Launches . | . . . . . . . . . . . . Drone Recoveries . | . . . . . . . . . . . . Exploration | -11 -10 -10 -7 -5 -5 -5 -5 -4 -4 -4 -4 ------------- Run | Yrd Mat Sub Rec Fac Upp Upp War Pro Fac Upp Upp Turns Passed 7302 | 29 435 2613 620 79 770 658 534 347 798 393 26 Spaces Moved 4986 | 11 96 1959 421 50 392 399 330 248 543 530 7 Core 496 | . . . . . . . . . 27 465 4 Treads . | . . . . . . . . . . . . Legs 3063 | 11 96 1959 421 50 392 66 . . . 65 3 Wheels 1427 | . . . . . . 333 330 248 516 . . Hover . | . . . . . . . . . . . . Flight . | . . . . . . . . . . . . Fastest Speed 50 | 120 120 120 120 120 190 101 103 128 50 50 50 Average Speed 120 | 120 120 122 120 155 190 120 130 128 106 60 87 Slowest Speed 200 | 120 120 190 190 190 190 190 145 128 128 200 120 Overloaded Moves . | . . . . . . . . . . . . Propulsion Burnouts . | . . . . . . . . . . . . Robots Hopped . | . . . . . . . . . . . . Cave-ins Triggered . | . . . . . . . . . . . . Exploration Rate (%) 39 | 3 7 86 63 2 65 53 49 47 18 74 2 Regions Visited 11 Branch Regions 8 Pre-discovered Areas 5 | . . 2 3 . . . . . . . . Known Exits Taken 2 | . . . . . . . . 1 1 . . Unknown Exits Taken 9 | 1 1 1 1 1 1 1 1 . . 1 . Scrap Searched 18 | . . 10 . . 1 3 . 1 . 3 . Spaces Dug 4 | . . 4 . . . . . . . . . Terrain Destroyed 387 | . . 13 8 . 48 39 98 40 133 6 2 Melee . | . . . . . . . . . . . . Projectile 47 | . . 7 8 . 2 7 4 . 11 6 2 AOE 340 | . . 6 . . 46 32 94 40 122 . . Terrain Rammed . | . . . . . . . . . . . . Walls Destroyed . | . . . . . . . . . . . . Machines Disabled . | . . . . . . . . . . . . Actions | -11 -10 -10 -7 -5 -5 -5 -5 -4 -4 -4 -4 --------- Run | Yrd Mat Sub Rec Fac Upp Upp War Pro Fac Upp Upp Total 5910 | 16 399 2077 522 52 404 482 414 268 683 577 16 Wait 450 | . 272 17 23 . 2 22 18 15 78 3 . Move 4976 | 10 95 1958 420 49 391 398 329 247 543 529 7 Hop . | . . . . . . . . . . . . Pick Up 32 | . 7 10 6 . . 2 1 . 2 4 . Fast Attach 40 | . 2 6 2 1 . 9 5 . 9 6 . Attach 15 | . . . . 1 2 1 . . 2 6 3 Detach 12 | . . 1 . 1 1 1 1 . 2 5 . Swap 12 | . 4 6 . . . . 1 . 1 . . Drop 52 | . 9 19 9 . . 2 5 . 5 3 . Fire 214 | 6 10 60 21 . 8 43 9 6 39 11 1 Melee 16 | . . . . . . 2 . . . 9 5 Ram 1 | . . . . . . . . . 1 . . Kick 3 | . . . 3 . . . . . . . . Crush . | . . . . . . . . . . . . Escape Stasis . | . . . . . . . . . . . . Rewire 83 | . . . 38 . . . 45 . . . . Trap 4 | . . . . . . 2 . . 1 1 . Miscellaneous . | . . . . . . . . . . . . Route ------- -11/Scrapyard -10/Materials -10/Subcaves (discovered 3 exits: [*Mat x2] / *Rec) -7/Recycling -5/Factory (discovered 2 exits: [*Upp] / DSF) -5/Upper Caves -5/Upper Caves -5/Warlord -4/Proximity Caves -4/Factory (discovered 3 exits: *Upp x2 / *Arm) -4/Upper Caves -4/Upper Caves History --------- Turn | Location | Event 1 | -11/Scrapyard | Discovered new exit (range 3) 30 | -11/Scrapyard | Entered Materials 300 | -10/Materials | Discovered new exit (range 11) 309 | -10/Materials | Build established: Mutant 465 | -10/Materials | Entered Subcaves 467 | -10/Subcaves | Shifting Twisted Machinery released Scrap Shield 482 | -10/Subcaves | Learned location of Storage (-7) 566 | -10/Subcaves | Learned location of Zion (-6) 566 | -10/Subcaves | Met a Zionite searching for "candidates" 567 | -10/Subcaves | Discovered new exit (range 9) 975 | -10/Subcaves | Disturbed a concealed Subdweller 1097 | -10/Subcaves | Ambushed by Subdweller buried in earth 1097 | -10/Subcaves | Discovered new exit (range 14) 1464 | -10/Subcaves | Shifting Twisted Machinery released Sub. Power Source 1760 | -10/Subcaves | Visited Clippyterm 1790 | -10/Subcaves | Discovered new exit (range 9) 1796 | -10/Subcaves | Disturbed a concealed Subdweller 2126 | -10/Subcaves | Visited 4L-MR0's lab 2175 | -10/Subcaves | Found Lrg. Botcube 2194 | -10/Subcaves | Found Powered Cannon 2195 | -10/Subcaves | Attached Powered Cannon, gained temporary slot: Power 2435 | -10/Subcaves | Ambushed by Subdweller buried in earth 2827 | -10/Subcaves | Shifting Twisted Machinery released Flamer 2833 | -10/Subcaves | Shifting Twisted Machinery released Sub. Monowheel 3078 | -10/Subcaves | Entered Recycling 3084 | -7/Recycling | Found Scrap Engine 3666 | -7/Recycling | Discovered new exit (range 16) 3698 | -7/Recycling | Entered Factory 3698 | -5/Factory | Accompanied by 4 allies 3698 | -5/Factory | Evolved 10 slots: Power x1, Propulsion x1, Utility x5, Weapon x3 3710 | -5/Factory | Identified exit to DSF 3750 | -5/Factory | Discovered new exit (range 9) 3777 | -5/Factory | Entered Upper Caves 3777 | -5/Upper Caves | Accompanied by 4 allies 3997 | -5/Upper Caves | Build established: Commander-Gunner 4211 | -5/Upper Caves | Attracted the attention of an 0b10 outpost 4231 | -5/Upper Caves | Lost 3 allies 4490 | -5/Upper Caves | Build established: Gunner 4532 | -5/Upper Caves | Discovered new exit (range 9) 4547 | -5/Upper Caves | Entered another Upper Caves area 4602 | -5/Upper Caves | Lost 3 parts (1u2w) 4701 | -5/Upper Caves | Encountered a Warlord checkpoint 4811 | -5/Upper Caves | Attracted the attention of an 0b10 outpost 5115 | -5/Upper Caves | Attracted the attention of an 0b10 checkpoint 5175 | -5/Upper Caves | Discovered new exit (range 6) 5192 | -5/Upper Caves | Learned Factory stockpile data 5205 | -5/Upper Caves | Entered Warlord 5251 | -5/Warlord | System corruption cleaned by Quarantine Array 5320 | -5/Warlord | Found Prototype Special Weapon 5320 | -5/Warlord | Identified RU-N14's Throwing Claymores v3 5323 | -5/Warlord | Found RU-N14's Throwing Claymores v3 5450 | -5/Warlord | Met Warlord 5459 | -5/Warlord | Warlord's base attacked by MAIN.C 5659 | -5/Warlord | Warlord forces counterattacked 5682 | -5/Warlord | P-70 Sage assimilated allied Beamer 6b 5685 | -5/Warlord | P-70 Sage assimilated allied Slayer 6a 5705 | -5/Warlord | Destroyed 8 combat bots 5713 | -5/Warlord | Discovered new exit (range 15) 5739 | -5/Warlord | Entered Proximity Caves 5739 | -4/Proximity Caves | Accompanied by 2 allies 5752 | -4/Proximity Caves | Identified exit to Factory 6086 | -4/Proximity Caves | Entered Factory 6086 | -4/Factory | Accompanied by 2 allies 6086 | -4/Factory | Evolved 2 slots: Propulsion x1, Utility x1 6112 | -4/Factory | Identified exit to Upper Caves 6112 | -4/Factory | Identified exit to Armory 6226 | -4/Factory | Repaired Railgun 6256 | -4/Factory | Repaired Neutrino Core 6372 | -4/Factory | Build established: Hacker-Skirmisher 6683 | -4/Factory | Garrison activated, responded to threat 6822 | -4/Factory | Found Prototype Launcher 6822 | -4/Factory | Identified Tesla Bomb Launcher 6884 | -4/Factory | Entered Upper Caves 6915 | -4/Upper Caves | Lost 16 parts (2p3n6u5w) 6939 | -4/Upper Caves | Core integrity fell below 50% 7100 | -4/Upper Caves | Learned 4 Research zone layouts 7133 | -4/Upper Caves | Attracted the attention of an 0b10 checkpoint 7145 | -4/Upper Caves | Build established: Hacker-Mutant 7262 | -4/Upper Caves | Discovered new exit (range 13) 7277 | -4/Upper Caves | Entered another Upper Caves area 7286 | -4/Upper Caves | Core integrity fell below 20% 7303 | -4/Upper Caves | Destroyed by S-27 Virus with Autogun Last Messages --------------- 07222_ Corrupted Imp. Treads self-destruct mechanism malfunctions. 07225_ Corrupted Adv. Heat Sink self-destruct mechanism malfunctions. 07262_ EXIT=FOUND LOCATION=UNKNOWN GOAL=ESCAPE 07282_ Neutrino Core destroyed. 07285_ Hacking Suite destroyed. 07287_ Neutrino Core destroyed. 07289_ Flexi-carbon Leg destroyed. 07289_ Mak. Hacking Suite destroyed. 07291_ Imp. Transmission Jammer destroyed. 07292_ Slug penetrates Wall. 07293_ Hvy. Gauss Cannon destroyed. 07294_ S-27 Virus destroyed. 07298_ Destroyed VTOL Module. 07298_ S-27 Virus system corrupted by crushing effect. 07299_ S-27 Virus system terminally corrupted. 07299_ Lgt. Nuclear Core fried. 07300_ Power Maul destroyed. 07301_ Imp. Target Analyzer destroyed. Map ----- +----------------------------------------------------+ | | | | | | | | | ???????????????????????????????????????????????? | | ???????????????????????????????????????????????? | | ???????????????????????????????????????????????? | | ???????????????????????????????????????????????? | | ???????????????????????????????????????????????? | | ???????????????????????????????????????????????? | | ???????????????????????????????????????????????? | | ???????????????????????????????????????????????? | | ???????????????????????????????????????????????? | | ???????????????????????????????????????????????? | | ???????????????????????????????????????????????? | | ???????????????????????????????????????????????? | | ???????????????????????????????????????????????? | | ???????????????????????????????????????????????? | | ???????????????????????????????????????????????? | | ?????????????????????#####?????????????????????? | | ????????????????????##s s####??????????????????? | | ???????????????????## s %;;#??????????????????? | | ???????????????????# % ##?????????????????? | | ???????????????????## ##????????????????? | | ????????????????????### ##???????????????? | | ??????????????????????# @ #???????????????? | | ??????????????????????### #???????????????? | | ????????????????????????# #???????????????? | | ???????????????????????? #??????????????? | | ???????????????????????? ### #??????????????? | | ????????????????????????# #?? #??????????????? | | ????????????????????????# #??? #??????????????? | | ????????????????????????# #??? #??????????????? | | ????????????????????????# #????#??????????????? | | ????????????????????????? #???????????????????? | | ????????????????????????? ##???????????????????? | | ????????????????????????? ?????????????????????? | | ?????????????????????????#?????????????????????? | | ???????????????????????????????????????????????? | | ???????????????????????????????????????????????? | | ???????????????????????????????????????????????? | | ???????????????????????????????????????????????? | | ???????????????????????????????????????????????? | | ???????????????????????????????????????????????? | | ???????????????????????????????????????????????? | | ???????????????????????????????????????????????? | | ???????????????????????????????????????????????? | | ???????????????????????????????????????????????? | | ???????????????????????????????????????????????? | | ???????????????????????????????????????????????? | +----------------------------------------------------+ Best States ------------- Heat Dissipation 62 Energy Generation 35 Energy Capacity 585 Matter Stores 300 Matter Capacity 300 Sight Range 21 Terrain Scan Range 20 Terrain Scan Density 10 Jamming Range 14 Armor Coverage 800 Evasion (%) 55 Target Analysis 6 Particle Charging 15 Offensive Hacking 43 Defensive Hacking 12 Trap Extractor Capacity 8 Item Schematics ----------------- Adv. Trap Extractor | -4/Factory | Scanalyzed Robot Schematics ------------------ None Fabricated ------------ Nothing Alien Tech Used ----------------- None Achievements -------------- None Challenges ------------ None Game ------ Seed EnergyBurstBuckler Manual? 0 Play Time 00:44:59 Cumulative 613.5 hours Start 2024.01.22 @ 01:40:07 End 2024.01.22 @ 02:25:42 Sessions 1 Manual Loads 0 Difficulty Rogue Special Mode None Game No. 558 Rogue 285 Adventurer 123 Explorer 150 Win Type - Total 25 Types 19/0/4/1/0/0/0/1/0 Lore% 79 Gallery% 90 Achievement% 75 Wizard Run 0 Options --------- ASCII 0 Keyboard 1 Movement Numpad Keybinds 0 Fullscreen 2 Font 18/X11Bold Map View 76x50 Zoom Use 0% Tactical HUD 1 Map Filters NONE Filters NONE Steam 1 RUN: 224e7e1d-ebf3-4773-a0d9-f0203224e8bc